[Event "Fagernes Open 2021"]
[Site "Fagernes"]
[Date "2021.10.10"]
[Round "1.1"]
[White "Eiding, Amanda Mai Irgens"]
[Black "Dulman, Egmond-Gabriel"]
[Result "0-1"]
[ECO "B04"]
[WhiteElo "1639"]
[BlackElo "2065"]
[Annotator "ChessBase"]
[PlyCount "78"]
[EventDate "2021.10.10"]
[EventCountry "NOR"]
[SourceTitle "playchess.com"]
[Source "ChessBase"]
[SourceQuality "1"]
[TimeControl "40/5400+30:1800+30"]

1. e4 {[%emt 0:42:28]} Nf6 {[%emt 0:00:21]} 2. e5 {[%emt 0:00:10]} Nd5 {[%emt 0:00:06]} 3. c4 {[%emt 0:00:07]} Nb6 {[%emt 0:00:04]} 4. d4 {[%emt 0:00:10]} d6 {[%emt 0:00:10]} 5. exd6 {[%emt 0:01:27]} cxd6 {[%emt 0:00:14]} 6. Nc3 {[%emt 0:02:19]} g6 {[%emt 0:01:10]} 7. Be2 {[%emt 0:01:14]} Bg7 {[%emt 0:01:50]} 8. Nf3 {[%emt 0:00:36]} O-O {[%emt 0:01:26]} 9. O-O {[%emt 0:00:45]} Nc6 {[%emt 0:02:20]} 10. Be3 {[%emt 0:03:28]} Bg4 {[%emt 0:02:38]} 11. b3 {[%emt 0:06:01]} d5 {[%emt 0:04:57]} 12. c5 {[%emt 0:07:45]} Nc8 {[%emt 0:01:19]} 13. h3 {[%emt 0:01:07]} Bxf3 {[%emt 0:02:16]} 14. Bxf3 {[%emt 0:00:10]} e6 {[%emt 0:00:53]} 15. Qd2 {[%emt 0:11:31]} N8e7 {[%emt 0:05:56]} 16. Rad1 {[%emt 0:04:16]} Nf5 {[%emt 0:02:58]} 17. Ne2 {[%emt 0:00:43]} Nh4 {[%emt 0:05:44]} 18. Bg4 {[%emt 0:01:19]} h5 {[%emt 0:02:24]} 19. Bg5 {[%emt 0:00:53]} Bf6 {[%emt 0:00:26]} 20. Bxh4 {[%emt 0:00:38]} Bxh4 {[%emt 0:00:26]} 21. Bf3 {[%emt 0:00:26]} Bf6 {[%emt 0:00:57]} 22. Qe3 {[%emt 0:04:58]} Kg7 {[%emt 0:03:47]} 23. Nc3 {[%emt 0:05:04]} Bg5 {[%emt 0:07:25]} 24. Qd3 {[%emt 0:07:24]} Qf6 {[%emt 0:04:44]} 25. Nb5 {[%emt 0:06:03]} Rad8 {[%emt 0:02:16]} 26. Nd6 {[%emt 0:05:20]} b6 {[%emt 0:02:52]} 27. g3 {[%emt 0:09:53]} bxc5 {[%emt 0:02:23]} 28. dxc5 {[%emt 0:00:59]} Ne5 {[%emt 0:00:53]} 29. Qe2 {[%emt 0:02:05]} Nxf3+ {[%emt 0:00:24]} 30. Kg2 {[%emt 0:00:06]} Nd4 {[%emt 0:02:00]} 31. Qd3 {[%emt 0:01:55]} Nf5 {[%emt 0:04:44]} 32. f4 {[%emt 0:00:13]} Bh6 {[%emt 0:00:43]} 33. Nb7 {[%emt 0:01:24]} Rb8 {[%emt 0:01:41]} 34. c6 {[%emt 0:00:16]} d4 {[%emt 0:04:18]} 35. Rc1 {[%emt 0:01:29]} Ne3+ {[%emt 0:01:07]} 36. Kf2 {[%emt 0:00:09]} Nxf1 {[%emt 0:02:32]} 37. Kxf1 {[%emt 0:00:09]} h4 {[%emt 0:01:22]} 38. Nd6 {[%emt 0:02:51]} hxg3 {[%emt 0:00:40]} 39. Rc2 {[%emt 0:01:36]} Qxf4+ {[%emt 0:00:21]} 0-1

[Event "Fagernes Open 2021"]
[Site "Fagernes"]
[Date "2021.10.10"]
[Round "1.2"]
[White "Krivenko, Dion"]
[Black "Bronmo, Askild Skovgaard"]
[Result "1-0"]
[ECO "B31"]
[WhiteElo "2045"]
[BlackElo "1637"]
[Annotator "ChessBase"]
[PlyCount "53"]
[EventDate "2021.10.10"]
[EventCountry "NOR"]
[SourceTitle "playchess.com"]
[Source "ChessBase"]
[SourceQuality "1"]
[TimeControl "40/5400+30:1800+30"]

1. e4 {[%emt 0:00:00]} c5 {[%emt 0:00:00]} 2. Nf3 {[%emt 0:00:00]} Nc6 {[%emt 0:00:00]} 3. Bb5 {[%emt 0:00:00]} g6 {[%emt 0:00:00]} 4. O-O {[%emt 0:00:00]} Bg7 {[%emt 0:00:00]} 5. Re1 {[%emt 0:00:00]} e6 {[%emt 0:00:00]} 6. c3 {[%emt 0:00:00]} Nge7 {[%emt 0:01:35]} 7. d4 {[%emt 0:00:00]} cxd4 {[%emt 0:00:55]} 8. cxd4 {[%emt 0:00:00]} O-O {[%emt 0:01:55]} 9. d5 {[%emt 0:00:00]} Ne5 {[%emt 0:09:12]} 10. Nc3 {[%emt 0:00:49]} Nxf3+ {[%emt 0:08:52]} 11. Qxf3 {[%emt 0:00:49]} e5 {[%emt 0:00:24]} 12. d6 {[%emt 0:07:45]} Nc6 {[%emt 0:01:23]} 13. Be3 {[%emt 0:03:07]} a6 {[%emt 0:10:26]} 14. Bc4 {[%emt 0:04:14]} b5 {[%emt 0:00:58]} 15. Bb3 {[%emt 0:00:01]} Na5 {[%emt 0:09:04]} 16. Nd5 {[%emt 0:12:18]} Nxb3 {[%emt 0:01:30]} 17. axb3 {[%emt 0:00:02]} Bb7 {[%emt 0:05:32]} 18. Bb6 {[%emt 0:07:18]} Qg5 {[%emt 0:07:22]} 19. Be3 {[%emt 0:02:04]} Qd8 {[%emt 0:00:00]} 20. Ne7+ {[%emt 0:06:21]} Kh8 {[%emt 0:00:00]} 21. Qg4 {[%emt 0:00:26]} Bf6 {[%emt 0:10:14]} 22. Bg5 {[%emt 0:00:15]} Bxg5 {[%emt 0:00:12]} 23. Qxg5 {[%emt 0:00:02]} Kg7 {[%emt 0:00:43]} 24. Qxe5+ {[%emt 0:01:01]} f6 {[%emt 0:00:16]} 25. Qg3 {[%emt 0:00:11]} Qb6 {[%emt 0:02:41]} 26. h4 {[%emt 0:01:28]} Qd4 {[%emt 0:06:09]} 27. Nf5+ {[%emt 0:00:09]} 1-0

[Event "Fagernes Open 2021"]
[Site "Fagernes"]
[Date "2021.10.10"]
[Round "1.3"]
[White "Grindbakken, Erik"]
[Black "Hausken, Andreas Skrede"]
[Result "0-1"]
[ECO "C78"]
[WhiteElo "1632"]
[BlackElo "1936"]
[Annotator "ChessBase"]
[PlyCount "48"]
[EventDate "2021.10.10"]
[EventCountry "NOR"]
[SourceTitle "playchess.com"]
[Source "ChessBase"]
[SourceQuality "1"]
[TimeControl "40/5400+30:1800+30"]

1. e4 {[%emt 0:00:00]} e5 {[%emt 0:00:00]} 2. Nf3 {[%emt 0:00:00]} Nc6 {[%emt 0:00:00]} 3. Bb5 {[%emt 0:00:00]} a6 {[%emt 0:00:00]} 4. Ba4 {[%emt 0:00:00]} Nf6 {[%emt 0:00:00]} 5. O-O {[%emt 0:00:00]} b5 {[%emt 0:00:00]} 6. Bb3 {[%emt 0:00:00]} Bc5 {[%emt 0:00:00]} 7. Nxe5 {[%emt 0:00:00]} Nxe5 {[%emt 0:00:00]} 8. d4 {[%emt 0:00:00]} Bxd4 {[%emt 0:00:00]} 9. Qxd4 {[%emt 0:00:00]} d6 {[%emt 0:00:00]} 10. c3 {[%emt 0:00:00]} Be6 {[%emt 0:07:18]} 11. Bc2 {[%emt 0:00:54]} c5 {[%emt 0:04:23]} 12. Qd1 {[%emt 0:01:43]} Qb6 {[%emt 0:11:30]} 13. Re1 {[%emt 0:10:05]} O-O {[%emt 0:09:53]} 14. Bg5 {[%emt 0:02:22]} Qd8 {[%emt 0:07:36]} 15. Bxf6 {[%emt 0:12:19]} Qxf6 {[%emt 0:00:08]} 16. Qxd6 {[%emt 0:01:00]} Qg5 {[%emt 0:00:21]} 17. Qd1 {[%emt 0:06:51]} Bh3 {[%emt 0:01:45]} 18. g3 {[%emt 0:02:56]} Bg4 {[%emt 0:00:20]} 19. Qc1 {[%emt 0:00:12]} Nf3+ {[%emt 0:00:24]} 20. Kg2 {[%emt 0:06:06]} Qh5 {[%emt 0:00:11]} 21. h4 {[%emt 0:00:23]} Nxh4+ {[%emt 0:00:15]} 22. gxh4 {[%emt 0:02:46]} Bf3+ {[%emt 0:00:07]} 23. Kf1 {[%emt 0:00:31]} Qxh4 {[%emt 0:00:09]} 24. Kg1 {[%emt 0:00:11]} Qh1# {[%emt 0:00:05]} 0-1

[Event "Fagernes Open 2021"]
[Site "Fagernes"]
[Date "2021.10.10"]
[Round "1.4"]
[White "Johannessen, Heine N"]
[Black "Lang, Gusztav"]
[Result "1-0"]
[ECO "E11"]
[WhiteElo "1930"]
[BlackElo "1840"]
[Annotator "ChessBase"]
[PlyCount "59"]
[EventDate "2021.10.10"]
[EventCountry "NOR"]
[SourceTitle "playchess.com"]
[Source "ChessBase"]
[SourceQuality "1"]
[TimeControl "40/5400+30:1800+30"]

1. d4 {[%emt 0:00:00]} Nf6 {[%emt 0:00:00]} 2. Nf3 {[%emt 0:00:00]} e6 {[%emt 0:00:00]} 3. c4 {[%emt 0:00:00]} Bb4+ {[%emt 0:00:00]} 4. Bd2 {[%emt 0:00:00]} Bxd2+ {[%emt 0:00:00]} 5. Qxd2 {[%emt 0:00:00]} O-O {[%emt 0:00:00]} 6. Nc3 {[%emt 0:00:00]} d5 {[%emt 0:00:00]} 7. e3 {[%emt 0:00:00]} b6 {[%emt 0:00:00]} 8. cxd5 {[%emt 0:03:32]} exd5 {[%emt 0:01:30]} 9. Bd3 {[%emt 0:02:06]} Bb7 {[%emt 0:02:06]} 10. O-O {[%emt 0:03:32]} Nbd7 {[%emt 0:07:20]} 11. Rac1 {[%emt 0:07:39]} h6 {[%emt 0:06:22]} 12. Nb5 {[%emt 0:12:01]} Ne4 {[%emt 0:06:29]} 13. Qc2 {[%emt 0:05:09]} c6 {[%emt 0:00:53]} 14. Nc3 {[%emt 0:07:17]} Nxc3 {[%emt 0:18:30]} 15. Qxc3 {[%emt 0:00:24]} c5 {[%emt 0:00:26]} 16. Rfd1 {[%emt 0:06:21]} c4 {[%emt 0:04:09]} 17. Bb1 {[%emt 0:00:35]} Qe7 {[%emt 0:22:20]} 18. Qc2 {[%emt 0:10:10]} g6 {[%emt 0:05:37]} 19. h4 {[%emt 0:03:14]} b5 {[%emt 0:00:58]} 20. h5 {[%emt 0:01:54]} Qe4 {[%emt 0:00:35]} 21. hxg6 {[%emt 0:10:11]} fxg6 {[%emt 0:01:44]} 22. Nh4 {[%emt 0:02:41]} Qxc2 {[%emt 0:05:22]} 23. Bxc2 {[%emt 0:00:15]} g5 {[%emt 0:01:12]} 24. Nf5 {[%emt 0:02:09]} Rf6 {[%emt 0:01:56]} 25. f3 {[%emt 0:02:45]} b4 {[%emt 0:05:19]} 26. e4 {[%emt 0:00:59]} dxe4 {[%emt 0:01:04]} 27. fxe4 {[%emt 0:01:39]} Ra6 {[%emt 0:02:06]} 28. Bb1 {[%emt 0:01:38]} Nf6 {[%emt 0:02:50]} 29. e5 {[%emt 0:01:58]} Ng4 {[%emt 0:00:33]} 30. Rxc4 {[%emt 0:00:55]} 1-0

[Event "Fagernes Open 2021"]
[Site "Fagernes"]
[Date "2021.10.10"]
[Round "1.5"]
[White "Bø, Torgeir Haraldstad"]
[Black "Unhjem, Bjorn Robert Lovoll"]
[Result "0-1"]
[ECO "D02"]
[WhiteElo "1613"]
[BlackElo "1924"]
[Annotator "ChessBase"]
[PlyCount "70"]
[EventDate "2021.10.10"]
[EventCountry "NOR"]
[SourceTitle "playchess.com"]
[Source "ChessBase"]
[SourceQuality "1"]
[TimeControl "40/5400+30:1800+30"]

1. d4 {[%emt 0:00:00]} Nf6 {[%emt 0:00:00]} 2. Nf3 {[%emt 0:00:00]} e6 {[%emt 0:00:00]} 3. Bf4 {[%emt 0:00:00]} d5 {[%emt 0:00:01]} 4. c3 {[%emt 0:00:00]} c5 {[%emt 0:00:50]} 5. e3 {[%emt 0:04:45]} Qb6 {[%emt 0:02:59]} 6. Qc2 {[%emt 0:02:07]} Bd7 {[%emt 0:00:37]} 7. Nbd2 {[%emt 0:05:58]} Bb5 {[%emt 0:04:03]} 8. Bxb5+ {[%emt 0:08:24]} Qxb5 {[%emt 0:00:10]} 9. e4 {[%emt 0:10:13]} Be7 {[%emt 0:04:33]} 10. O-O-O {[%emt 0:11:14]} O-O {[%emt 0:02:25]} 11. g4 {[%emt 0:11:03]} Nc6 {[%emt 0:02:58]} 12. Ng5 {[%emt 0:03:33]} cxd4 {[%emt 0:02:52]} 13. e5 {[%emt 0:01:25]} d3 {[%emt 0:00:12]} 14. Qb1 {[%emt 0:03:10]} Nd4 {[%emt 0:01:23]} 15. Rhe1 {[%emt 0:14:42]} Nxg4 {[%emt 0:04:11]} 16. Ndf3 {[%emt 0:03:09]} Nxf3 {[%emt 0:08:58]} 17. Nxf3 {[%emt 0:01:40]} Nxf2 {[%emt 0:00:29]} 18. Rd2 {[%emt 0:02:27]} Bc5 {[%emt 0:05:23]} 19. Bg3 {[%emt 0:02:12]} Qb6 {[%emt 0:00:39]} 20. Rxd3 {[%emt 0:02:19]} Nxd3+ {[%emt 0:00:50]} 21. Qxd3 {[%emt 0:00:08]} Qa6 {[%emt 0:07:34]} 22. Qc2 {[%emt 0:01:54]} Be7 {[%emt 0:00:38]} 23. Kb1 {[%emt 0:01:46]} Qc4 {[%emt 0:01:21]} 24. Nd4 {[%emt 0:02:35]} Rfc8 {[%emt 0:01:50]} 25. Qg2 {[%emt 0:01:26]} Qd3+ {[%emt 0:01:17]} 26. Nc2 {[%emt 0:00:52]} b5 {[%emt 0:00:48]} 27. Rg1 {[%emt 0:00:21]} Qe4 {[%emt 0:02:11]} 28. Qd2 {[%emt 0:01:34]} b4 {[%emt 0:03:38]} 29. Bf4 {[%emt 0:01:41]} bxc3 {[%emt 0:02:37]} 30. bxc3 {[%emt 0:00:55]} Rab8+ {[%emt 0:03:05]} 31. Kc1 {[%emt 0:00:31]} Rxc3 {[%emt 0:04:36]} 32. Bh6 {[%emt 0:02:39]} Ba3+ {[%emt 0:00:59]} 33. Kd1 {[%emt 0:00:18]} Rb1+ {[%emt 0:00:13]} 34. Qc1 {[%emt 0:00:39]} Rd3+ {[%emt 0:00:10]} 35. Bd2 {[%emt 0:00:13]} Rxc1# {[%emt 0:00:06]} 0-1

[Event "Fagernes Open 2021"]
[Site "Fagernes"]
[Date "2021.10.10"]
[Round "1.6"]
[White "Kittilsen, Sigurd"]
[Black "Evenshaug, Amadeus Hestvik"]
[Result "1/2-1/2"]
[ECO "B43"]
[WhiteElo "1881"]
[BlackElo "1609"]
[Annotator "NA RC"]
[PlyCount "117"]
[EventDate "2021.10.10"]
[EventCountry "NOR"]
[SourceTitle "playchess.com"]
[Source "ChessBase"]
[SourceQuality "1"]
[TimeControl "40/5400+30:1800+30"]

{[%evp 9,117,22,32767,32767,32767,32767,32767,32767,13,32767,40,32767,29,0,64,39,32,27,43,32767,28,32767,-35,32767,-29,32767,25,10,32767,32767,32767,32767,32767,27,32767,18,32767,0,7,32767,32767,32767,32767,18,38,43,32767,38,66,32767,61,42,41,33,233,0,32767,32767,32767,32767,32767,32767,32767,32767,25,0,0,0,0,32767,32767,0,32767,32767,0,0,32767,32767,32767,32767,8,0,0,0,0,0,0,0,0,0,0,0,0,0,0,0,0,0,-8,-415,32767,32767,32767,32767,-8,-8,-28000,-28000,-28000,-8]} 1. e4 {[%emt 0:00:00]} c5 {[%emt 0:00:00]} 2. Nf3 {[%emt 0:00:00]} e6 {[%emt 0:00:00]} 3. d4 {[%emt 0:00:00]} cxd4 {[%emt 0:00:00]} 4. Nxd4 {[%emt 0:00:00]} a6 {[%emt 0:00:00]} 5. Nc3 {[%emt 0:00:00]} Qc7 {[%emt 0:00:00]} 6. Be3 {[%emt 0:00:00]} Nf6 {[%emt 0:00:00]} 7. Bd3 {[%emt 0:04:36]} Nc6 {[%emt 0:00:00]} 8. O-O {[%emt 0:09:56]} Be7 {[%emt 0:06:12]} 9. f4 {[%emt 0:02:57]} d6 {[%emt 0:03:59]} 10. Qf3 {[%emt 0:04:24]} O-O {[%emt 0:16:14]} 11. h3 {[%emt 0:12:30]} e5 {[%emt 0:20:37]} (11... b5 $11) 12. Nde2 {[%emt 0:12:46]} exf4 {[%emt 0:14:21]} 13. Nxf4 {[%emt 0:07:20]} Ne5 {[%emt 0:00:33]} 14. Qe2 {[%emt 0:01:29]} Be6 {[%emt 0:01:43]} 15. Ncd5 {[%emt 0:03:56]} Bxd5 {[%emt 0:03:27]} 16. Nxd5 {[%emt 0:01:18]} Nxd5 {[%emt 0:00:20]} 17. exd5 {[%emt 0:00:11]} Nxd3 {[%emt 0:01:16]} 18. Qxd3 {[%emt 0:00:24]} Rac8 {[%emt 0:04:28]} 19. c3 {[%emt 0:05:03]} Qc4 {[%emt 0:03:22]} 20. Qxc4 {[%emt 0:06:00]} Rxc4 {[%emt 0:00:15]} 21. Bd4 {[%emt 0:00:16]} Bh4 {[%emt 0:04:14]} 22. Rf3 {[%emt 0:10:16]} Re8 {[%emt 0:05:26]} 23. Raf1 {[%emt 0:01:12]} Rc7 {[%emt 0:01:22]} 24. g3 {[%emt 0:01:39]} Bg5 {[%emt 0:02:28]} 25. h4 {[%emt 0:00:48]} Bd8 {[%emt 0:02:33]} 26. Kg2 {[%emt 0:07:37]} Re2+ {[%emt 0:05:47]} 27. R1f2 {[%emt 0:00:18]} Rxf2+ {[%emt 0:00:19]} 28. Kxf2 {[%emt 0:00:40]} Re7 {[%emt 0:00:19]} 29. Re3 {[%emt 0:00:53]} f5 {[%emt 0:01:28]} 30. Rxe7 {[%emt 0:03:07]} Bxe7 {[%emt 0:00:17]} 31. a4 {[%emt 0:00:31]} b5 $2 {[%emt 0:01:20] [#]} (31... Kf7 $11) 32. b3 $2 {[%emt 0:01:44]} ({White must play} 32. a5 $1 $18) 32... Kf7 {[%emt 0:00:27]} 33. Ke3 {[%emt 0:00:54]} g5 {[%emt 0:01:41]} 34. h5 {[%emt 0:02:59]} Ke8 {[%emt 0:00:39]} 35. axb5 {[%emt 0:00:19]} axb5 {[%emt 0:00:10]} 36. Kd3 {[%emt 0:00:04]} Kd7 {[%emt 0:00:23]} 37. c4 {[%emt 0:00:09]} bxc4+ {[%emt 0:00:23]} 38. Kxc4 {[%emt 0:00:06]} Kc7 {[%emt 0:00:17]} 39. Kb5 {[%emt 0:00:30]} Kb7 {[%emt 0:00:16]} 40. Ka5 {[%emt 0:00:45]} Bd8+ {[%emt 0:00:59]} 41. Kb5 {[%emt 0:30:06]} Be7 {[%emt 0:32:47]} 42. Bg7 {[%emt 0:02:12]} f4 {[%emt 0:00:00]} 43. gxf4 {[%emt 0:00:00]} gxf4 {[%emt 0:00:00]} 44. Kc4 {[%emt 0:00:00]} Ka6 {[%emt 0:00:00]} 45. Bb2 {[%emt 0:00:00]} Bh4 {[%emt 0:00:00]} 46. Kd3 {[%emt 0:00:00]} f3 {[%emt 0:00:00]} 47. Ke3 {[%emt 0:00:00]} f2 {[%emt 0:00:00]} 48. Ke2 {[%emt 0:00:00]} Kb5 {[%emt 0:00:00]} 49. Ba3 {[%emt 0:00:00]} Bg3 {[%emt 0:00:00]} 50. Kf1 {[%emt 0:00:00]} Ka5 {[%emt 0:00:00]} 51. Kg2 {[%emt 0:00:00]} Kb5 {[%emt 0:00:00]} 52. Kf1 {[%emt 0:00:00]} Ka5 {[%emt 0:00:00]} 53. Bxd6 {[%emt 0:00:00]} Bxd6 {[%emt 0:00:02]} 54. Kxf2 {[%emt 0:00:00]} Kb4 {[%emt 0:00:17]} 55. Ke3 {[%emt 0:00:00]} Kxb3 {[%emt 0:00:18]} 56. Ke4 {[%emt 0:00:00]} Kc4 {[%emt 0:00:05]} 57. h6 {[%emt 0:00:00]} Kc5 {[%emt 0:00:30]} 58. Kf5 {[%emt 0:00:00]} Bf8 {[%emt 0:01:41]} 59. Ke5 $11 {[%emt 0:02:07]} 1/2-1/2

[Event "Fagernes Open 2021"]
[Site "Fagernes"]
[Date "2021.10.10"]
[Round "1.7"]
[White "Stenseng, Benjamin"]
[Black "Dahl, Torbjorn"]
[Result "0-1"]
[ECO "A22"]
[WhiteElo "1590"]
[BlackElo "1876"]
[Annotator "NA RC"]
[PlyCount "116"]
[EventDate "2021.10.10"]
[EventCountry "NOR"]
[SourceTitle "playchess.com"]
[Source "ChessBase"]
[SourceQuality "1"]
[TimeControl "40/5400+30:1800+30"]

{[%evp 21,116,-56,32767,32767,0,32767,32767,-63,0,-46,-62,32767,-43,-156,-180,-187,-186,-177,-170,-189,-194,-221,-195,-203,-204,-314,32767,-258,32767,32767,32767,32767,32767,32767,32767,-99,32767,32767,-77,-137,32767,-137,32767,32767,32767,-294,-272,32767,-168,32767,32767,-257,32767,-404,32767,32767,32767,-535,32767,32767,32767,32767,-630,32767,-662,-621,-652,-631,-681,-725,-700,-681,32767,32767,32767,32767,-241,-427,0,-518,-538,-810,-833,32767,32767,32767,32767,-848,-900,32767,32767,32767,-998,-1841,-1064,-2387,-989]} 1. c4 {[%emt 0:00:00]} e5 {[%emt 0:00:00]} 2. g3 {[%emt 0:00:00]} Nf6 {[%emt 0:00:00]} 3. Bg2 {[%emt 0:00:00]} Nc6 {[%emt 0:00:00]} 4. Nc3 {[%emt 0:00:00]} Bc5 {[%emt 0:00:00]} 5. e3 {[%emt 0:00:00]} O-O {[%emt 0:00:00]} 6. Nge2 {[%emt 0:00:00]} a6 {[%emt 0:02:30]} 7. O-O {[%emt 0:00:00]} d6 {[%emt 0:01:53]} 8. a3 {[%emt 0:02:28]} Ba7 {[%emt 0:02:06]} 9. Qc2 {[%emt 0:01:53]} Bg4 {[%emt 0:02:01]} 10. b4 {[%emt 0:01:31]} Qd7 {[%emt 0:00:39]} 11. b5 {[%emt 0:06:18]} (11. Re1 $11) 11... axb5 {[%emt 0:02:58]} 12. cxb5 {[%emt 0:01:08]} Nd8 {[%emt 0:02:27]} (12... Na5 $15) 13. Re1 {[%emt 0:00:58]} c6 {[%emt 0:02:57]} 14. a4 {[%emt 0:03:13]} Rc8 {[%emt 0:07:26]} (14... d5 $15 15. d4 exd4 16. exd4 Bf5) 15. Qb3 {[%emt 0:07:04]} (15. d4 $11) 15... Ne6 {[%emt 0:02:00]} 16. b6 {[%emt 0:04:16]} Bb8 {[%emt 0:01:29]} 17. d4 {[%emt 0:19:14]} ({White should play} 17. f3 $15 Nc5 18. Qc2) 17... Ng5 {[%emt 0:03:58]} 18. e4 {[%emt 0:19:28]} Nf3+ {[%emt 0:01:29]} 19. Bxf3 {[%emt 0:00:09]} Bxf3 {[%emt 0:00:13]} 20. dxe5 {[%emt 0:00:47]} dxe5 {[%emt 0:00:22]} ({Stronger than} 20... Nxe4 21. Nd4 $11) 21. Nd1 {[%emt 0:01:17]} Bxe4 {[%emt 0:03:36]} 22. f3 {[%emt 0:03:02]} Bd5 {[%emt 0:02:11]} 23. Qc3 {[%emt 0:03:18]} (23. Qd3 {is a better defense.}) 23... Qf5 {[%emt 0:01:50]} 24. Rf1 {[%emt 0:01:48]} Bd6 {[%emt 0:03:38]} 25. Ba3 {[%emt 0:08:50]} Bxa3 {[%emt 0:01:39]} 26. Rxa3 {[%emt 0:00:23]} Rfe8 {[%emt 0:04:01]} 27. a5 {[%emt 0:02:12]} Nd7 {[%emt 0:08:12]} 28. Ne3 {[%emt 0:03:34]} Qe6 {[%emt 0:00:18]} 29. Qb4 {[%emt 0:02:54]} Nb8 {[%emt 0:01:18]} 30. Nc3 {[%emt 0:00:57]} ({White should try} 30. Rd3) 30... Na6 {[%emt 0:00:36]} 31. Qh4 {[%emt 0:01:14]} Qd6 {[%emt 0:01:38]} 32. Ra4 {[%emt 0:01:39]} Qc5 {[%emt 0:01:45]} 33. Ncd1 {[%emt 0:00:56]} Bb3 {[%emt 0:06:12]} 34. Rg4 {[%emt 0:02:00]} g6 {[%emt 0:03:30]} ({And not} 34... Bxd1 35. Rxg7+ Kxg7 36. Qg5+ Kh8 37. Qf6+ {[%mdl 64] Double Attack} Kg8 38. Qg5+ Kh8 39. Qf6+ {[%mdl 64] Double Attack} Kg8 40. Qg5+ Kh8 $11) 35. Qh6 {[%emt 0:01:48]} Rcd8 {[%emt 0:09:37]} 36. Kg2 {[%emt 0:00:34]} (36. Nf2 $142 Qf8 37. Qxf8+ Kxf8 38. Rh4) 36... Qf8 {[%emt 0:06:48]} 37. Qg5 $2 {[%emt 0:00:58]} (37. Qxf8+ Rxf8 38. Nb2) 37... f6 {[%emt 0:01:48]} 38. Qh5 {[%emt 0:00:28]} Be6 {[%emt 0:04:07]} 39. Nf5 {[%emt 0:00:21]} Kh8 {[%emt 0:04:02]} 40. Rxg6 {[%emt 0:01:39]} Bxf5 {[%emt 0:00:08]} 41. Rh6 {[%emt 0:30:33] [#]} Qg7 $1 {[%emt 0:31:47]} 42. Ne3 {[%emt 0:00:56]} Bg6 {[%emt 0:00:56]} 43. Qh4 {[%emt 0:00:05]} Rd2+ {[%emt 0:04:10]} 44. Kh1 {[%emt 0:01:12]} Red8 {[%emt 0:00:46]} 45. f4 {[%emt 0:00:00]} Be4+ {[%emt 0:00:00]} 46. Kg1 {[%emt 0:00:00]} R8d3 {[%emt 0:00:00]} 47. Re1 {[%emt 0:00:00]} exf4 {[%emt 0:00:00]} 48. Qxf4 {[%emt 0:00:00]} Bg6 {[%emt 0:00:00]} 49. Nf5 {[%emt 0:00:00]} Qf8 $2 {[%emt 0:00:00]} ({Black should play} 49... Qf7 $19 50. Qg4 Rd8) 50. Rxg6 $2 {[%emt 0:00:00]} Rd1 {[%emt 0:00:00]} ({Weaker is} 50... hxg6 {[#]} 51. Re8 $3 {[%mdl 512]} Rd1+ 52. Kg2 R3d2+ 53. Kh3 Rxh2+ 54. Kxh2 g5 55. Rxf8+ Kh7 56. Rf7+ Kh8 57. Qf3) 51. Rxd1 {[%emt 0:00:00]} Rxd1+ {[%emt 0:00:00]} 52. Kg2 {[%emt 0:00:00]} hxg6 {[%emt 0:00:00]} 53. Qh4+ {[%emt 0:00:00]} Kg8 {[%emt 0:00:00]} 54. Qc4+ {[%emt 0:00:00]} Rd5 {[%emt 0:00:00] Double Attack} 55. Ne3 {[%emt 0:00:00]} Qc5 {[%emt 0:01:36]} 56. Qe4 {[%emt 0:00:00]} Rd2+ {[%emt 0:00:44]} 57. Kg1 {[%emt 0:00:00]} Kf7 {[%emt 0:01:52]} 58. h4 {[%emt 0:00:00]} Re2 $19 {[%emt 0:01:15]} 0-1